bitfinex/quotes_ETHUSD_20220308
["timestamp","ask_amount","ask_price","bid_price","bid_amount"]
[1646744194001,0.25,2571.1,2571.0,0.466]
[1646744195404,0.25,2571.1,2571.0,0.49370628]
[1646744196653,0.25,2571.1,2571.0,3.99370628]
[1646744196851,0.25,2571.1,2571.0,2.59370628]
[1646744197051,0.25,2571.1,2571.0,1.59370628]
[1646744197252,0.25,2571.1,2571.0,16.83370628]
[1646744197453,2.24471,2571.2,2571.0,17.78468448]
[1646744197653,2.24471,2571.2,2571.1,12.84]
[1646744197851,2.23438905,2571.2,2571.1,13.84]
[1646744198056,2.23438905,2571.2,2571.1,14.306]
[1646744200096,1.93438905,2571.2,2571.1,15.01841567]
[1646744200299,1.93438905,2571.2,2571.1,14.306]
[1646744200698,1.93438905,2571.2,2571.1,17.306]
[1646744200899,1.93438905,2571.2,2571.1,14.306]
[1646744201101,1.93438905,2571.2,2571.1,15.89608467]
[1646744201899,1.93438905,2571.2,2571.1,16.60864716]
[1646744202102,1.93438905,2571.2,2571.1,15.89608467]
[1646744202504,1.88438905,2571.2,2571.1,15.89608467]
[1646744204757,1.88438905,2571.2,2571.1,15.94883992]
[1646744205859,1.82848905,2571.2,2571.1,15.94883992]
[1646744206058,1.79838905,2571.2,2571.1,15.94883992]
[1646744206261,1.79408905,2571.2,2571.1,15.94883992]
[1646744206458,1.66508905,2571.2,2571.1,15.94883992]
[1646744206661,0.05150562,2571.6,2571.3,12.84]
[1646744206858,3.88975,2571.7,2571.5,1.1]
[1646744207060,3.90698886,2571.7,2571.6,3.15608467]
[1646744207459,3.90698886,2571.7,2571.6,4.45608467]
[1646744207910,3.88975,2571.7,2571.6,4.45608467]
[1646744208917,3.88975,2571.7,2571.6,3.99008467]
[1646744209316,3.88975,2571.7,2571.6,4.45608467]
[1646744209517,2.49868307,2571.8,2571.6,8.92819277]
[1646744209715,2.49868307,2571.8,2571.7,2.69008467]
[1646744209716,2.19868307,2571.8,2571.7,2.69008467]
[1646744209916,2.19868307,2571.8,2571.7,3.15608467]
[1646744210117,0.50280561,2571.8,2571.7,4.15608467]
[1646744210318,0.49849254,2571.8,2571.7,4.15608467]
[1646744210519,0.49049254,2571.8,2571.7,10.65608467]
[1646744210719,0.49049254,2571.8,2571.7,13.41987296]
[1646744210720,0.48889254,2571.8,2571.7,13.41987296]
[1646744210918,0.48569254,2571.8,2571.7,21.65987296]
[1646744211127,0.47051736,2571.9,2571.7,19.60873099]
[1646744211362,0.44491736,2571.9,2571.8,2.69008467]
[1646744211560,0.43048746,2571.9,2571.8,4.16873099]
[1646744211751,0.43048746,2571.9,2571.8,7.21987296]
[1646744211752,0.40651736,2571.9,2571.8,7.21987296]
[1646744211954,0.37291736,2571.9,2571.8,7.21987296]
[1646744212154,0.1658146,2572.1,2572.0,1.1]
[1646744212356,2.2927,2573.0,2572.1,1.1]
[1646744212558,3.93223646,2573.6,2572.6,1.1]
[1646744212559,1.1709,2573.2,2572.6,1.1]
[1646744212758,2.7229,2573.4,2572.8,1.1]
[1646744212759,0.25,2572.9,2572.8,1.1]
[1646744212957,0.25,2572.9,2572.8,3.15608467]
[1646744213255,0.25,2572.9,2572.8,4.45608467]
[1646744213657,0.25,2573.1,2573.0,1.1]
[1646744213857,0.25,2573.1,2573.0,3.66181467]
[1646744214066,0.25,2573.1,2573.0,4.42781467]
[1646744214260,0.25,2573.1,2573.0,5.42781467]
[1646744214459,0.25,2573.4,2573.0,4.45608467]
[1646744214660,0.25,2573.4,2573.1,1.59008467]
[1646744214860,0.25,2573.4,2573.2,1.1]
[1646744215100,0.97174,2573.3,2573.2,1.566]
[1646744215305,0.97174,2573.3,2573.2,3.15526069]
[1646744215601,0.97174,2573.3,2573.2,4.15526069]
[1646744216804,0.97174,2573.3,2573.2,2.566]
[1646744217405,2.49824225,2573.4,2573.2,2.566]
[1646744217604,2.49339,2573.4,2573.2,2.566]
[1646744217804,2.49824225,2573.4,2573.2,2.566]
[1646744218604,2.19824225,2573.4,2573.2,1.566]
[1646744218859,2.19339,2573.4,2573.2,3.53757]
[1646744219052,2.19824219,2573.4,2573.2,2.53757]
[1646744219255,2.19824219,2573.4,2573.2,3.53757]
[1646744219452,0.25485219,2573.4,2573.3,2.68904217]
[1646744219652,0.25485219,2573.4,2573.3,3.15504217]
[1646744219854,0.25485219,2573.4,2573.3,4.15504217]
[1646744220051,0.25,2573.4,2573.3,3.15504217]
[1646744220252,0.97169,2573.5,2573.3,7.16753176]
[1646744220253,0.95734213,2573.5,2573.3,7.16753176]
[1646744220453,0.00485213,2573.5,2573.3,4.57848959]
[1646744220652,0.00485213,2573.5,2573.4,14.42889316]
[1646744220653,5.213e-05,2573.5,2573.4,14.42889316]
[1646744220854,5.213e-05,2573.5,2573.4,17.80891316]
[1646744221053,5.213e-05,2573.5,2573.4,18.80891316]
[1646744221251,0.25,2573.6,2573.4,18.80891316]
[1646744221453,0.25,2573.6,2573.5,17.42889316]
[1646744221753,1.22136,2573.6,2573.5,18.89489316]
[1646744222154,1.94293,2573.7,2573.5,18.89489316]
[1646744222352,1.94293,2573.7,2573.6,14.42889316]
[1646744222603,1.94293,2573.7,2573.6,14.89489316]
[1646744222902,1.94293,2573.7,2573.6,15.89489316]
[1646744224305,0.25,2573.9,2573.6,15.89489316]
[1646744224508,4.27207,2574.5,2574.1,1.1]
[1646744224706,4.27207,2574.5,2574.3,1.1]
[1646744224905,4.27207,2574.5,2574.4,1.566]
[1646744225104,7.77207,2574.5,2574.4,1.566]
[1646744225305,8.77468336,2574.5,2574.4,1.1]
[1646744225705,0.3858,2574.2,2573.9,1.167]
[1646744226105,0.3858,2574.2,2574.0,0.59272957]
[1646744226359,3.3007,2574.2,2574.1,0.34272957]
[1646744226751,0.3858,2574.1,2573.5,0.97159]
[1646744226953,0.3858,2574.1,2573.8,0.3]
[1646744227156,0.3858,2574.1,2573.5,0.97159]
[1646744227453,0.00485161,2573.9,2573.6,0.466]
[1646744227653,1.94309,2573.8,2573.6,0.466]
[1646744228654,1.94794173,2573.8,2573.6,0.466]
[1646744228853,0.88748934,2573.7,2573.6,0.466]
[1646744229055,4.77328934,2573.7,2573.6,0.466]
[1646744229254,1.27328934,2573.7,2573.4,1.99762976]
[1646744230099,1.3575,2573.7,2573.4,1.94309]
[1646744230300,2.63357803,2573.8,2573.7,1.00923563]
[1646744230906,2.62889,2573.8,2573.7,1.00923563]
[1646744231106,2.62889,2573.8,2573.4,3.40909]
[1646744231306,4.67133217,2573.8,2573.4,1.466]
[1646744231705,4.67133217,2573.8,2573.5,0.60969937]
[1646744232306,0.00468809,2573.7,2573.5,0.60969937]
[1646744232507,2.91974809,2573.7,2573.5,0.60969937]
[1646744232706,2.91974809,2573.7,2573.5,1.58129937]
[1646744233107,2.91974809,2573.7,2573.6,1.07569937]
[1646744233108,2.91506,2573.7,2573.6,1.07569937]
[1646744233709,2.91959987,2573.7,2573.6,1.07569937]
[1646744234158,2.91959987,2573.7,2573.6,1.1]
[1646744234356,1.84583444,2573.7,2573.6,1.1]
[1646744234758,1.84583444,2573.7,2573.3,1.97154]
[1646744234956,1.84583444,2573.7,2573.3,0.97154]
[1646744235162,1.84583444,2573.7,2573.4,0.466]
[1646744235357,0.97171,2573.6,2573.4,0.466]
[1646744235860,0.97624997,2573.6,2573.4,0.466]
[1646744236057,0.3858,2573.5,2573.4,0.466]
[1646744236258,0.97624997,2573.6,2573.4,0.466]
[1646744236860,0.97171,2573.6,2573.4,0.466]
[1646744237059,0.3858,2573.5,2573.4,0.466]
[1646744237461,1.35766,2573.4,2573.0,0.466]
[1646744237702,2.19371,2573.3,2573.0,1.466]
[1646744237897,2.19371,2573.3,2573.0,0.466]
[1646744240505,5.69371,2573.3,2573.0,0.466]
[1646744240705,2.19371,2573.3,2573.0,0.466]
[1646744241552,2.57951,2573.3,2573.0,0.466]
[1646744244655,2.57951,2573.3,2573.1,0.634]
[1646744245502,2.57951,2573.3,2573.2,0.04747578]
[1646744248405,2.19371,2573.3,2573.2,0.04747578]
[1646744249355,0.25,2573.3,2573.2,0.04747578]
[1646744249654,0.12140311,2573.3,2573.2,1.14747578]
[1646744249854,0.9763993,2573.6,2573.2,2.73658291]
[1646744249855,0.25,2573.5,2573.2,2.73658291]
[1646744250052,0.25,2573.5,2573.4,0.634]
[1646744250252,0.0045493,2573.6,2573.4,2.68906741]
[1646744250454,0.0045493,2573.6,2573.5,2.22306741]
[1646744250854,0.0045493,2573.6,2573.5,2.68906741]
[1646744251052,0.25,2573.7,2573.5,2.68906741]
[1646744251254,0.25,2573.7,2573.5,1.1]
[1646744251456,0.25454931,2573.7,2573.5,1.1]
[1646744251654,0.97185,2573.6,2573.5,1.1]
[1646744251854,0.97185,2573.6,2573.5,2.68895076]
[1646744252154,1.27185,2573.6,2573.5,1.1]
[1646744252798,1.27185,2573.6,2573.5,2.68903112]
[1646744253201,1.427444,2573.6,2573.5,2.68903112]
[1646744253397,1.27185,2573.6,2573.5,2.68903112]
[1646744254604,0.25,2574.0,2573.7,0.634]
[1646744254802,1.1942,2574.9,2573.9,0.634]
[1646744254803,3.5,2574.3,2573.9,0.634]
[1646744255003,0.01819451,2574.1,2574.0,1.1]
[1646744255202,0.01819451,2574.1,2574.0,2.68874377]
[1646744255704,0.01819451,2574.1,2574.0,3.68874377]
[1646744255906,1.22147,2574.3,2574.0,2.68874377]
[1646744256101,1.22147,2574.3,2574.2,0.634]
[1646744256363,1.78886435,2574.9,2574.3,5.5]
[1646744256553,2.35637195,2575.2,2574.4,2.68874377]
[1646744256751,2.355,2575.2,2574.6,0.634]
[1646744256953,0.97111,2575.0,2574.8,0.634]
[1646744257153,0.97111,2575.0,2574.9,2.68874377]
[1646744257551,0.97111,2575.0,2574.9,1.1]
[1646744257751,4.85691,2575.0,2574.9,1.1]
[1646744257950,1.35691,2575.0,2574.9,1.1]
[1646744258752,0.97111,2575.0,2574.9,1.1]
[1646744259960,0.97111,2575.0,2574.9,2.68829174]
[1646744260909,0.97111,2575.0,2574.9,1.1]
[1646744261108,1.126625,2575.0,2574.9,2.68829824]
[1646744261310,0.20487608,2575.1,2574.9,2.98829824]
[1646744261508,0.20487608,2575.1,2575.0,2.22229824]
[1646744261706,0.20487608,2575.1,2575.0,2.68829824]
[1646744262108,0.2,2575.1,2575.0,2.68829824]
[1646744262707,0.2,2575.1,2575.0,1.1]
[1646744266766,0.00137195,2575.7,2575.0,1.1]
[1646744266963,6.8647,2575.8,2575.2,0.634]
[1646744266964,4.04517195,2575.8,2575.2,0.634]
[1646744267163,0.0195374,2575.6,2575.4,0.634]
[1646744267362,0.0195374,2575.6,2575.5,0.634]
[1646744267600,1.19931774,2575.6,2575.5,0.634]
[1646744267999,1.17978034,2575.6,2575.5,0.634]
[1646744268501,0.0195702,2575.8,2575.4,0.634]
[1646744269105,1.126495,2575.7,2575.4,0.634]
[1646744269304,0.971,2575.7,2575.5,0.634]
[1646744269505,0.97286145,2575.7,2575.5,0.634]
[1646744270304,0.99243165,2575.7,2575.5,0.634]
[1646744270505,0.9905702,2575.7,2575.5,0.634]
[1646744270707,0.99545464,2575.7,2575.5,0.634]
[1646744270906,1.38125464,2575.7,2575.5,0.634]
[1646744271550,1.3763702,2575.7,2575.5,0.634]
[1646744271750,1.38125464,2575.7,2575.5,0.634]
[1646744272152,0.99545464,2575.7,2575.5,0.634]
[1646744272851,0.9905702,2575.7,2575.5,0.634]
[1646744273052,3.8858,2575.6,2575.5,0.634]
[1646744273253,3.8858,2575.6,2574.9,0.0934603]
[1646744273254,0.4053702,2575.6,2574.9,0.0934603]
[1646744273452,0.3858,2575.4,2574.9,0.0934603]
[1646744273854,3.29971,2575.4,2574.9,0.0934603]
[1646744274255,0.00488487,2575.3,2574.9,0.0934603]
[1646744274755,0.97619487,2575.3,2574.9,0.0934603]
[1646744275204,0.12653014,2575.3,2575.0,0.04704944]
[1646744275403,0.12653014,2575.3,2575.0,0.51304944]
[1646744275602,0.12653014,2575.3,2575.0,0.81304944]
[1646744275603,0.1312501,2575.3,2575.0,0.81304944]
[1646744275903,2.91391,2575.4,2575.3,0.17978184]
[1646744277504,2.91391,2575.4,2575.3,0.4425651]
[1646744278304,10.79971,2575.4,2574.9,0.04644458]
[1646744278508,35.53971,2575.4,2574.2,0.3884]
[1646744278706,12.1258,2575.1,2573.7,0.466]
[1646744278958,12.1258,2575.1,2573.3,0.466]
[1646744278959,0.97159,2574.1,2573.3,0.466]
[1646744279167,0.97159,2574.1,2573.4,1.58866453]
[1646744279359,1.27159,2574.1,2573.4,1.58866453]
[1646744279556,1.65739,2574.1,2573.4,1.58866453]
[1646744279955,2.17778682,2573.6,2573.4,1.58866453]
[1646744280356,1.27182,2573.6,2573.4,1.58866453]
[1646744280756,1.27182,2573.6,2573.0,0.466]
[1646744280956,1.27182,2573.6,2573.1,1.58889371]
[1646744281560,1.27182,2573.6,2573.2,0.00463228]
[1646744281760,2.41305734,2573.6,2573.3,1.58889371]
[1646744282157,1.27182,2573.6,2573.3,1.58889371]
[1646744282609,1.27182,2573.6,2573.3,1.59352583]
[1646744282809,1.27182,2573.6,2573.4,2.05489371]
[1646744283011,1.27182,2573.6,2573.5,1.58889371]
[1646744283309,1.27182,2573.6,2573.4,0.466]
[1646744283810,1.27182,2573.6,2573.5,1.1]
[1646744283811,0.97182,2573.6,2573.5,1.1]
[1646744284614,1.127402,2573.6,2573.5,2.68883805]
[1646744285015,0.97182,2573.6,2573.5,2.68883805]
[1646744285414,1.27182,2573.6,2573.5,2.68883805]
[1646744286214,3.5,2574.1,2573.5,3.15483805]
[1646744286460,3.8997,2574.8,2573.7,1.1]
[1646744286461,2.928,2574.8,2573.7,1.1]
[1646744286660,2.928,2574.8,2574.0,1.1]
[1646744286861,2.4282,2574.9,2574.2,1.1]
[1646744287065,1.94264,2574.5,2574.3,1.566]
[1646744287262,0.97131,2574.6,2574.4,1.41049536]
[1646744287462,3.88575,2575.1,2574.5,1.1]
[1646744287762,3.88575,2575.1,2574.7,1.1]
[1646744287961,3.88575,2575.1,2574.9,1.1]
[1646744288163,3.88575,2575.1,2575.0,1.1]
[1646744288362,3.88575,2575.1,2574.8,0.466]
[1646744289266,4.27155,2575.1,2574.8,0.466]
[1646744290100,1.94234,2575.1,2574.8,0.466]
[1646744290707,1.94234,2575.1,2574.8,0.766]
[1646744290909,0.97116,2575.2,2574.9,1.58818869]
[1646744291102,2.923,2575.7,2575.0,3.52985866]
[1646744291103,0.00458101,2575.4,2575.0,3.52985866]
[1646744291301,0.00458101,2575.4,2575.1,1.58818869]
[1646744291504,0.97089,2575.3,2575.2,1.43688]
[1646744291707,0.97089,2575.3,2575.2,1.73688]
[1646744292004,0.97089,2575.3,2575.2,3.32491265]
[1646744292208,0.97089,2575.3,2575.2,3.32491886]
[1646744292404,0.97089,2575.3,2575.2,4.32491886]
[1646744293866,0.97089,2575.3,2575.2,4.95891886]
[1646744294258,0.97089,2575.3,2575.2,3.98803886]
[1646744295561,0.97089,2575.3,2575.2,2.4]
[1646744295760,0.3,2575.4,2575.3,1.35709478]
[1646744295960,0.30458092,2575.4,2575.3,3.41120506]
[1646744296159,0.00458092,2575.4,2575.3,3.41120506]
[1646744296359,0.00458092,2575.4,2575.3,4.41120506]
[1646744296559,0.00458092,2575.4,2575.3,2.82309478]
[1646744296860,1.94187,2575.5,2575.3,3.4111464]
[1646744297060,1.94187,2575.5,2575.3,1.82309478]
[1646744297061,1.9464509,2575.5,2575.3,1.82309478]
[1646744298104,1.94187,2575.5,2575.3,1.82309478]
[1646744298304,1.94645085,2575.5,2575.3,1.82309478]
[1646744299110,1.94645085,2575.5,2575.3,1.35709478]
[1646744299310,1.94187,2575.5,2575.3,1.35709478]
[1646744299510,1.94645085,2575.5,2575.3,1.35709478]
[1646744300111,1.94645085,2575.5,2575.4,2.22192719]
[1646744300511,1.94187,2575.5,2575.4,2.22192719]
[1646744300713,1.94645085,2575.5,2575.4,2.22192719]
[1646744300911,1.94645085,2575.5,2575.4,0.634]
[1646744301748,1.94187,2575.5,2575.4,0.634]
[1646744302553,3.54332686,2575.5,2575.4,0.634]
[1646744302753,3.15752686,2575.5,2574.8,0.466]
[1646744302957,3.15752686,2575.5,2574.9,1.58824679]
[1646744303853,3.15752686,2575.5,2574.7,1.58824679]
[1646744304055,3.15752686,2575.5,2574.8,1.58824679]
[1646744304256,0.00458088,2575.4,2574.8,2.05424679]
[1646744304456,0.00458088,2575.4,2574.9,1.58824679]
[1646744304656,0.97103,2575.3,2574.9,1.58824679]
[1646744304856,0.97103,2575.3,2574.9,1.88824679]
[1646744305101,0.97103,2575.3,2575.0,1.58824679]
[1646744305304,0.97103,2575.3,2575.1,1.58824679]
[1646744305507,0.97103,2575.3,2575.0,0.97105]
[1646744305902,0.97103,2575.3,2575.1,1.58812416]
[1646744307105,0.97103,2575.3,2575.1,2.05412416]
[1646744307307,0.97103,2575.3,2575.2,1.58812416]
[1646744307908,0.97103,2575.3,2575.2,2.29375937]
[1646744308958,0.97103,2575.3,2575.2,0.70563521]
[1646744309557,0.97103,2575.3,2575.2,2.29374406]
[1646744311064,0.97103,2575.3,2575.2,0.70563521]
[1646744311860,0.97103,2575.3,2574.9,0.3528176]
[1646744312260,1.09735217,2575.1,2575.0,0.3528176]
[1646744312704,1.09735217,2575.1,2574.6,0.3]
[1646744312705,2.06855217,2575.1,2574.6,0.3]
[1646744312903,2.06855217,2575.1,2574.7,1.58822895]
[1646744314110,2.06855217,2575.1,2574.8,0.57890337]
[1646744314309,2.06855217,2575.1,2575.0,0.57890337]
[1646744314509,0.9712,2575.1,2574.6,0.3]
[1646744314809,0.9712,2575.1,2574.7,1.88826777]
[1646744315009,0.9712,2575.1,2574.8,1.58826777]
[1646744315508,0.9712,2575.1,2574.9,1.58826777]
[1646744315710,0.9712,2575.1,2574.5,0.77089608]
[1646744315911,0.9712,2575.1,2574.6,1.58832054]
[1646744316108,0.9712,2575.1,2574.7,0.28945168]
[1646744316367,0.9712,2575.1,2574.9,0.28945168]
[1646744316553,0.9712,2575.1,2574.6,0.28945168]
[1646744316753,0.9712,2575.1,2574.8,0.28945168]
[1646744316955,0.9712,2575.1,2575.0,0.28945168]
[1646744317255,2.397925,2575.2,2575.1,1.01234121]
[1646744317456,0.455525,2575.2,2575.1,2.60065416]
[1646744317655,0.455525,2575.2,2575.1,3.06665416]
[1646744317856,1.15405415,2575.4,2575.2,0.28945168]
[1646744318056,1.15405415,2575.4,2575.2,1.72640168]
[1646744318461,1.14915999,2575.4,2575.2,1.72640168]
[1646744318657,1.15390758,2575.4,2575.2,1.72640168]
[1646744319058,0.97099,2575.3,2575.2,2.02640168]
[1646744319261,0.97099,2575.3,2575.2,3.61450185]
[1646744319461,1.45390758,2575.4,2575.2,7.11450185]
[1646744319661,1.14915999,2575.4,2575.3,1.87755185]
[1646744319859,1.14915999,2575.4,2575.3,2.34355185]
[1646744320113,1.15390754,2575.4,2575.3,2.34355185]
[1646744321020,1.14915999,2575.4,2575.3,2.34355185]
[1646744325864,1.14915999,2575.4,2575.3,1.87755185]
[1646744326064,1.14915999,2575.4,2575.3,0.28945168]
[1646744326866,1.14915999,2575.4,2575.1,1.02288953]
[1646744327166,2.12013999,2575.4,2575.2,1.58806062]
[1646744328402,2.12464609,2575.4,2575.2,1.58806062]
[1646744329207,2.12013999,2575.4,2575.2,1.58806062]
[1646744329609,2.12446622,2575.4,2575.2,1.58806062]
[1646744330608,2.12013999,2575.4,2575.2,1.58806062]
[1646744330808,2.12446622,2575.4,2575.2,1.58806062]
[1646744331661,2.12013999,2575.4,2575.2,1.58806062]
[1646744332155,2.12446622,2575.4,2575.2,1.58806062]
[1646744332955,2.12013999,2575.4,2575.2,1.58806062]
[1646744333155,2.12448165,2575.4,2575.3,0.466]
[1646744333357,2.12448165,2575.4,2575.1,2.99387953]
[1646744333557,2.12448165,2575.4,2575.2,0.466]
[1646744334160,2.12013999,2575.4,2575.2,0.466]
[1646744334362,2.12448165,2575.4,2575.3,0.1]
[1646744334562,2.12448165,2575.4,2575.3,0.466]
[1646744334759,2.12448165,2575.4,2575.3,1.72294174]
[1646744334960,2.12448165,2575.4,2575.3,0.566]
[1646744335206,2.12013999,2575.4,2575.3,0.92252338]
[1646744335606,2.12013999,2575.4,2575.3,0.62252338]
[1646744337009,2.12013999,2575.4,2575.2,1.067]
[1646744337010,2.8858,2575.3,2575.2,1.067]
[1646744337309,0.3858,2575.3,2574.5,3.90236612]
[1646744337507,0.3858,2575.3,2574.5,2.65406612]
[1646744337508,0.97124,2575.2,2574.5,2.65406612]
[1646744337708,0.97124,2575.2,2574.5,1.94223]
[1646744337908,0.97124,2575.2,2574.4,1.17783612]
[1646744338309,1.02238019,2575.0,2574.4,1.17783612]
[1646744338509,1.02238019,2575.0,2574.5,1.9423089]
[1646744338966,0.97122,2574.9,2574.5,1.9423089]
[1646744339177,1.27122,2574.9,2574.5,1.9423089]
[1646744339369,2.96482019,2575.0,2574.5,1.9423089]
[1646744339370,1.94244,2575.0,2574.9,0.42300415]
[1646744339570,1.94244,2575.0,2574.5,2.9135289]
[1646744340166,1.94244,2575.0,2574.6,0.466]
[1646744341375,2.24244,2575.0,2574.6,1.4371524]
[1646744341571,2.24244,2575.0,2574.7,0.97114]
[1646744341775,2.24244,2575.0,2574.8,0.466]
[1646744342605,2.397954,2575.0,2574.8,0.466]
[1646744343007,2.24244,2575.0,2574.8,0.466]
[1646744345212,2.24244,2575.0,2574.8,0.766]
[1646744345913,2.24244,2575.0,2574.8,1.47783612]
[1646744346112,0.97119,2575.2,2574.8,1.47783612]
[1646744346372,0.97119,2575.2,2575.1,1.70946675]
[1646744346558,0.97119,2575.2,2575.1,2.27783612]
[1646744346963,1.94174,2575.3,2575.1,1.566]
[1646744347161,1.15363886,2575.4,2575.2,1.1]
[1646744347366,1.14915999,2575.4,2575.3,1.566]
[1646744347763,0.00137195,2576.0,2575.5,1.1]
[1646744347764,0.01934892,2576.0,2575.5,1.1]
[1646744347965,1.9415,2575.7,2575.6,3.39869607]
[1646744348166,0.98866697,2576.0,2575.6,3.39869607]
[1646744348464,0.98866697,2576.0,2575.8,1.1]
[1646744348663,0.97069,2576.0,2575.9,1.566]
[1646744348863,3.88364,2576.2,2575.9,1.566]
[1646744349866,1.9413,2576.1,2575.9,1.566]
[1646744350706,1.9413,2576.1,2575.7,0.9706415]
[1646744350910,1.9413,2576.1,2575.8,0.466]
[1646744351106,1.94315705,2576.1,2575.8,0.466]
[1646744352115,1.9413,2576.1,2575.8,0.466]
[1646744352412,1.94620054,2576.1,2575.8,0.466]
[1646744353314,1.9413,2576.1,2575.9,1.58784563]
[1646744353515,1.9413,2576.1,2576.0,0.466]
[1646744353717,1.94620054,2576.1,2575.7,1.9414015]
[1646744353969,1.94620054,2576.1,2575.8,0.466]
[1646744354567,1.9413,2576.1,2575.8,0.466]
[1646744354770,1.94620054,2576.1,2575.8,0.466]
[1646744355168,1.94620054,2576.1,2575.8,0.766]
[1646744355366,1.94620054,2576.1,2575.9,0.97069]
[1646744355571,1.94620054,2576.1,2576.0,0.466]
[1646744355768,1.9413,2576.1,2575.9,0.97069]
[1646744355968,1.94620054,2576.1,2576.0,0.466]
[1646744356167,1.94620054,2576.1,2575.9,0.97069]
[1646744356368,1.94620054,2576.1,2576.0,0.466]
[1646744356969,1.9413,2576.1,2576.0,0.466]
[1646744358817,1.9413,2576.1,2576.0,1.566]
[1646744359419,0.2476741,2576.1,2576.0,1.566]
[1646744361019,0.2476741,2576.1,2576.0,2.566]
[1646744361218,0.2476741,2576.1,2576.0,3.566]
[1646744363466,0.2476741,2576.1,2576.0,2.566]
[1646744363867,0.2476741,2576.1,2575.9,1.97069]
[1646744364067,0.2476741,2576.1,2575.9,0.97069]
[1646744364867,0.2476741,2576.1,2576.0,0.466]
[1646744365315,0.1976741,2576.1,2576.0,0.466]
[1646744365513,2.91652339,2576.2,2576.0,0.466]
[1646744365714,2.91652339,2576.2,2576.0,1.7365192]
[1646744365914,2.91652339,2576.2,2576.0,0.466]
[1646744366511,2.91193,2576.2,2576.0,0.466]
[1646744366712,2.91378707,2576.2,2576.0,0.466]
[1646744367114,2.91378707,2576.2,2576.0,0.766]
[1646744367718,2.91193,2576.2,2576.0,2.60901743]
[1646744367918,2.91652603,2576.2,2576.0,2.60901743]
[1646744368117,2.91652603,2576.2,2576.0,3.60901743]
[1646744368860,2.91193,2576.2,2576.0,3.60901743]
[1646744369264,2.91652603,2576.2,2576.0,3.60901743]
[1646744370066,2.91193,2576.2,2576.1,0.06626555]
[1646744370469,2.91652603,2576.2,2576.1,0.53226555]
[1646744371269,2.91193,2576.2,2576.1,0.53226555]
[1646744372712,2.91193,2576.2,2575.9,2.27069]
[1646744372911,2.91193,2576.2,2576.0,0.466]
[1646744373314,2.91193,2576.2,2575.9,0.97069]
[1646744373515,2.91193,2576.2,2576.1,0.466]
[1646744373715,2.91193,2576.2,2576.1,1.5878282]
[1646744373914,2.91652601,2576.2,2576.1,0.466]
[1646744374116,2.91652601,2576.2,2576.1,2.0538282]
[1646744374914,2.91193,2576.2,2576.1,2.12006441]
[1646744375314,2.91193,2576.2,2576.1,3.35126609]
[1646744376358,0.3858,2576.5,2576.2,5.5]
[1646744376560,0.01838086,2576.7,2576.3,3.48950988]
[1646744376765,0.01838086,2576.7,2576.5,0.93120168]
[1646744376958,0.01838086,2576.7,2576.2,5.06893022]
[1646744376959,1.95922086,2576.7,2576.6,2.51902988]
[1646744377159,1.95922086,2576.7,2576.1,0.06623621]
[1646744377359,1.94084,2576.7,2576.2,2.35361179]
[1646744377560,1.94084,2576.7,2576.2,0.766]
[1646744377763,2.32664,2576.7,2576.2,0.766]
[1646744379267,1.58099319,2576.6,2576.2,0.766]
[1646744379470,3.52247319,2576.6,2576.2,0.766]
[1646744381206,0.97532903,2576.5,2576.2,0.766]
[1646744382007,4.47532903,2576.5,2576.2,0.466]
[1646744382208,4.85653,2576.5,2576.1,0.12853519]
[1646744382411,14.86143686,2576.5,2576.1,0.06623621]
[1646744382608,0.3858,2576.1,2575.4,0.466]
[1646744382807,0.3858,2575.9,2575.5,1.58800535]
[1646744383006,3.5,2576.2,2575.6,1.58800535]
[1646744383007,1.14847882,2576.1,2575.6,1.58800535]
[1646744383207,1.14847882,2576.1,2575.7,1.58800535]
[1646744383408,0.94892251,2575.6,2575.3,1.941772]
[1646744383609,0.94892251,2575.6,2575.4,1.58805454]
[1646744383610,0.97093,2575.5,2575.4,1.58805454]
[1646744383860,0.97093,2575.5,2575.4,1.88805454]
[1646744384262,0.97093,2575.5,2575.4,2.35405454]
[1646744387704,0.97093,2575.5,2575.4,2.54029561]
[1646744387905,0.97093,2575.5,2575.4,3.54029561]
[1646744388305,0.97093,2575.5,2575.4,4.25240028]
[1646744388914,2.91246,2576.0,2575.4,7.75240028]
[1646744389114,0.00137195,2576.2,2575.6,0.89834574]
[1646744389312,0.00137195,2576.3,2575.8,0.18624107]
[1646744389513,0.00137195,2576.7,2576.0,0.57204107]
[1646744389713,3.9138,2577.7,2576.0,0.57204107]
[1646744389714,0.00137195,2576.8,2576.4,0.18624107]
[1646744389912,0.00137195,2577.1,2576.9,0.18624107]
[1646744390113,0.00137195,2577.3,2577.1,0.97004]
[1646744390313,0.3884,2577.4,2577.2,2.24029561]
[1646744390613,0.3884,2577.4,2577.3,1.77429561]
[1646744390816,1.35845,2577.4,2577.3,2.54029561]
[1646744391359,0.97005,2577.4,2577.3,3.52672864]
[1646744391563,0.99668618,2578.1,2577.3,4.52672864]
[1646744391858,1.93996,2577.9,2577.6,0.18624107]
[1646744392058,1.93996,2577.9,2577.8,0.18624107]
[1646744392257,1.93996,2577.9,2577.8,0.65224107]
[1646744393158,1.93996,2577.9,2577.8,0.60224107]
[1646744393559,2.095308,2577.9,2577.8,0.60224107]
[1646744393968,1.93996,2577.9,2577.8,0.60224107]
[1646744394176,1.93996,2577.9,2577.2,0.9702353]
[1646744394177,1.93996,2577.9,2577.5,0.18624107]
[1646744395308,1.04847138,2577.7,2577.5,0.18624107]
[1646744395504,2.01875138,2577.7,2577.5,0.18624107]
[1646744396905,2.02058797,2577.7,2577.5,0.18624107]
[1646744397705,2.01875138,2577.7,2577.5,0.18624107]
[1646744397906,2.02352559,2577.7,2577.5,0.18624107]
[1646744398708,2.02352559,2577.7,2577.4,0.18624107]
[1646744398962,2.01875138,2577.7,2577.4,0.18624107]
[1646744399161,0.97028,2577.7,2577.4,0.18624107]